Workbook

Sheet Summary
A1: Performance Comparision Program
A5: Companies | C5: Stock Ticker | F5: Companies | H5: Stock Ticker | K5: Companies | M5: Stock Ticker
A6: 1 | F6: 6 | K6: 11
A7: 2 | C7: cat | F7: 7 | H7: goog | K7: 12
A8: 3 | C8: mtor | F8: 8 | K8: 13
A9: 4 | C9: aapl | F9: 9 | H9: amzn | K9: 14
A10: 5 | C10: msft | F10: 10 | H10: intc | K10: 15

Sheet Ratios
B1: $ Thousand
B2: Liquidity | F2: cat | G2: mtor | H2: aapl | I2: msft | J2: goog | K2: amzn | L2: intc
B3: Current Ratio (CA/CL) | F3: =cat!C51/cat!C68 -> 1.334967263 | G3: =mtor!C51/mtor!C68 -> 1.262645914 | H3: =aapl!C51/aapl!C68 -> 1.495848685 | I3: =msft!C51/msft!C68 -> 2.602912384 | J3: =goog!C51/goog!C68 -> 5.919219118 | K3: =amzn!C51/amzn!C68 -> 1.174140709 | L3: =intc!C51/intc!C68 -> 2.150981044
B4: Quick Ratio (Cash + Accounts Receivable)/CL | F4: =(cat!C45+cat!C46+cat!C47)/cat!C68 ->  | G4: =(mtor!C45+mtor!C46+mtor!C47)/mtor!C68 ->  | H4: =(aapl!C45+aapl!C46+aapl!C47)/aapl!C68 -> 1.307768149 | I4: =(msft!C45+msft!C46+msft!C47)/msft!C68 -> 2.47353769 | J4: =(goog!C45+goog!C46+goog!C47)/goog!C68 -> 5.723437675 | K4: =(amzn!C45+amzn!C46+amzn!C47)/amzn!C68 -> 0.8390171858 | L4: =(intc!C45+intc!C46+intc!C47)/intc!C68 -> 1.678333888
B5: Net Working Capital (CA - CL) | F5: =cat!C51-cat!C68 -> 9567000 | G5: =mtor!C51-mtor!C68 -> 270000 | H5: =aapl!C51-aapl!C68 -> 19111000 | I5: =msft!C51-msft!C68 -> 52396000 | J5: =goog!C51-goog!C68 -> 43845000 | K5: =amzn!C51-amzn!C68 -> 2594000 | L5: =intc!C51-intc!C68 -> 13844000
B6: Current Assets/Total Assets | F6: =cat!C51/cat!C60 -> 0.4681383984 | G6: =mtor!C51/mtor!C60 -> 0.518992403 | H6: =aapl!C51/aapl!C60 -> 0.3274547892 | I6: =msft!C51/msft!C60 -> 0.7016021967 | J6: =goog!C51/goog!C60 -> 0.7269545567 | K6: =amzn!C51/amzn!C60 -> 0.6919060052 | L6: =intc!C51/intc!C60 -> 0.3637846426
B8: Profitability | F8: cat | G8: mtor | H8: aapl | I8: msft | J8: goog | K8: amzn | L8: intc
B9: Gross Profit Margin | F9: =cat!C5/cat!C2 -> 0.2616315807 | G9: =mtor!C5/mtor!C2 -> 0.1097781802 | H9: =aapl!C5/aapl!C2 -> 0.4387123981 | I9: =msft!C5/msft!C2 -> 0.7622180324 | J9: =goog!C5/goog!C2 -> 0.6520775623 | K9: =amzn!C5/amzn!C2 -> 0.2244108409 | L9: =intc!C5/intc!C2 -> 0.6251412063
B10: Profit Margin | F10: =cat!C35/cat!C2 -> 0.08194486015 | G10: =mtor!C35/mtor!C2 -> 0.01177003169 | H10: =aapl!C35/aapl!C2 -> 0.266650906 | I10: =msft!C35/msft!C2 -> 0.2302944807 | J10: =goog!C35/goog!C2 -> 0.2568790397 | K10: =amzn!C35/amzn!C2 -> 0.013124779 | L10: =intc!C35/intc!C2 -> 0.239671105
B11: Return on Total Assets | F11: =cat!C35/cat!C60 -> 0.06050634776 | G11: =mtor!C35/mtor!C60 -> 0.02079168333 | H11: =aapl!C35/aapl!C60 -> 0.2370331243 | I11: =msft!C35/msft!C60 -> 0.1400004948 | J11: =goog!C35/goog!C60 -> 0.1341665059 | K11: =amzn!C35/amzn!C60 -> 0.02496241791 | L11: =intc!C35/intc!C60 -> 0.181976687
B12: Return on Equity | F12: =cat!C35/cat!C87 -> 0.3825195995 | G12: =mtor!C35/mtor!C87 -> -0.05083088954 | H12: =aapl!C35/aapl!C87 -> 0.3530411979 | I12: =msft!C35/msft!C87 -> 0.2558353299 | J12: =goog!C35/goog!C87 -> 0.1674606587 | K12: =amzn!C35/amzn!C87 -> 0.08134588114 | L12: =intc!C35/intc!C87 -> 0.2818932282
B14: Activity | F14: cat | G14: mtor | H14: aapl | I14: msft | J14: goog | K14: amzn | L14: intc
B15: Inventory Turnover | F15: =2*cat!C3/(cat!C48+cat!D48) -> 3.680245328 | G15: =2*mtor!C3/(mtor!C48+mtor!D48) -> 8.759465479 | H15: =2*aapl!C3/(aapl!C48+aapl!D48) -> 112.1199745 | I15: =2*msft!C3/(msft!C48+msft!D48) -> 13.9736947 | J15: =2*goog!C3/(goog!C48+goog!D48) ->  | K15: =2*amzn!C3/(amzn!C48+amzn!D48) -> 9.101293629 | L15: =2*intc!C3/(intc!C48+intc!D48) -> 5.155227302
B16: Average Age of Inventory (Days) | F16: =365/(2*cat!C3/(cat!C48+cat!D48)) -> 99.17817089 | G16: =365/(2*mtor!C3/(mtor!C48+mtor!D48)) -> 41.66920926 | H16: =365/(2*aapl!C3/(aapl!C48+aapl!D48)) -> 3.255441341 | I16: =365/(2*msft!C3/(msft!C48+msft!D48)) -> 26.1205077 | J16: =365/(2*goog!C3/(goog!C48+goog!D48)) ->  | K16: =365/(2*amzn!C3/(amzn!C48+amzn!D48)) -> 40.10418902 | L16: =365/(2*intc!C3/(intc!C48+intc!D48)) -> 70.80192175
B17: Total Asset Turnover | F17: =2*cat!C2/(cat!C60+cat!D60) -> 0.8268323869 | G17: =2*mtor!C2/(mtor!C60+mtor!D60) -> 1.711076685 | H17: =2*aapl!C2/(aapl!C60+aapl!D60) -> 1.070378033 | I17: =2*msft!C2/(msft!C60+msft!D60) -> 0.6411392543 | J17: =2*goog!C2/(goog!C60+goog!D60) -> 0.581253594 | K17: =2*amzn!C2/(amzn!C60+amzn!D60) -> 2.181599546 | L17: =2*intc!C2/(intc!C60+intc!D60) -> 0.8041249395
B18: Accounts Recievable Turnover | F18: =2*cat!C2/(cat!C47+cat!D47) -> 3.228365901 | G18: =2*mtor!C2/(mtor!C47+mtor!D47) -> 7.046251994 | H18: =2*aapl!C2/(aapl!C47+aapl!D47) -> 8.941781409 | I18: =2*msft!C2/(msft!C47+msft!D47) -> 4.180611869 | J18: =2*goog!C2/(goog!C47+goog!D47) -> 6.508413462 | K18: =2*amzn!C2/(amzn!C47+amzn!D47) -> 20.43655685 | L18: =2*intc!C2/(intc!C47+intc!D47) -> 11.12807831
B19: Average Collection Period (Days) | F19: =365/(2*cat!C2/(cat!C47+cat!D47)) -> 113.0602947 | G19: =365/(2*mtor!C2/(mtor!C47+mtor!D47)) -> 51.8005885 | H19: =365/(2*aapl!C2/(aapl!C47+aapl!D47)) -> 40.81960667 | I19: =365/(2*msft!C2/(msft!C47+msft!D47)) -> 87.30779404 | J19: =365/(2*goog!C2/(goog!C47+goog!D47)) -> 56.08125577 | K19: =365/(2*amzn!C2/(amzn!C47+amzn!D47)) -> 17.86015142 | L19: =365/(2*intc!C2/(intc!C47+intc!D47)) -> 32.79991296
B21: Leverage | F21: cat | G21: mtor | H21: aapl | I21: msft | J21: goog | K21: amzn | L21: intc
B22: Debt Ratio (Total Liabilities/Total Assets) | F22: =cat!C75/cat!C60 -> 0.8360140461 | G22: =mtor!C75/mtor!C60 -> 1.409036385 | H22: =aapl!C75/aapl!C60 -> 0.3285964195 | I22: =msft!C75/msft!C60 -> 0.4527710665 | J22: =goog!C75/goog!C60 -> 0.1988177584 | K22: =amzn!C75/amzn!C60 -> 0.6931323681 | L22: =intc!C75/intc!C60 -> 0.3544481784
B23: Short-Term Debt/Total Liabilities | F23: =cat!C65/cat!C75 -> 0.1416948157 | G23: =mtor!C65/mtor!C75 -> 0.005107832009 | H23: =aapl!C65/aapl!C75 ->  | I23: =msft!C65/msft!C75 -> 0.02241931959 | J23: =goog!C65/goog!C75 -> 0.08441333426 | K23: =amzn!C65/amzn!C75 ->  | L23: =intc!C65/intc!C75 -> 0.009798476674
B24: Long Term Debt/Total Liabilities | F24: =cat!C69/cat!C75 -> 0.3663386694 | G24: =mtor!C69/mtor!C75 -> 0.2956867196 | H24: =aapl!C69/aapl!C75 ->  | I24: =msft!C69/msft!C75 -> 0.195108181 | J24: =goog!C69/goog!C75 -> 0.2069443482 | K24: =amzn!C69/amzn!C75 ->  | L24: =intc!C69/intc!C75 -> 0.2810218978
B25: Times Interest Earned (EBIT/Interest Expense) | F25: =cat!C20/cat!C21 -> 17.98232323 | G25: =mtor!C20/mtor!C21 -> 2.442105263 | H25: =aapl!C20/aapl!C21 ->  | I25: =msft!C20/msft!C21 ->  | J25: =goog!C20/goog!C21 ->  | K25: =amzn!C20/amzn!C21 -> 15.36923077 | L25: =intc!C20/intc!C21 -> 
B27: Dupont | F27: cat | G27: mtor | H27: aapl | I27: msft | J27: goog | K27: amzn | L27: intc
B28: Return on Sales (NOPAT/Sales) | F28: =cat!C35/cat!C2 -> 0.08194486015 | G28: =mtor!C35/mtor!C2 -> 0.01177003169 | H28: =aapl!C35/aapl!C2 -> 0.266650906 | I28: =msft!C35/msft!C2 -> 0.2302944807 | J28: =goog!C35/goog!C2 -> 0.2568790397 | K28: =amzn!C35/amzn!C2 -> 0.013124779 | L28: =intc!C35/intc!C2 -> 0.239671105
B29: Asset Turnover (Sales/Total Assets) | F29: =cat!C2/cat!C60 -> 0.7383788031 | G29: =mtor!C2/mtor!C60 -> 1.766493403 | H29: =aapl!C2/aapl!C60 -> 0.8889267539 | I29: =msft!C2/msft!C60 -> 0.6079194531 | J29: =goog!C2/goog!C60 -> 0.5222944856 | K29: =amzn!C2/amzn!C60 -> 1.901930532 | L29: =intc!C2/intc!C60 -> 0.7592767052
B30: Asset Leverage (Total Assets/Equity) | F30: =cat!C60/cat!C87 -> 6.321974695 | G30: =mtor!C60/mtor!C87 -> -2.444770283 | H30: =aapl!C60/aapl!C87 -> 1.489417139 | I30: =msft!C60/msft!C87 -> 1.827388756 | J30: =goog!C60/goog!C87 -> 1.248155473 | K30: =amzn!C60/amzn!C87 -> 3.258734047 | L30: =intc!C60/intc!C87 -> 1.549062316
B31: Return on Equity (NOPAT/Equity) | F31: =cat!C35/cat!C87 -> 0.3825195995 | G31: =mtor!C35/mtor!C87 -> -0.05083088954 | H31: =aapl!C35/aapl!C87 -> 0.3530411979 | I31: =msft!C35/msft!C87 -> 0.2558353299 | J31: =goog!C35/goog!C87 -> 0.1674606587 | K31: =amzn!C35/amzn!C87 -> 0.08134588114 | L31: =intc!C35/intc!C87 -> 0.2818932282

Sheet cat
A1: Period Ending | C1: 2011-12-30 | D1: 2010-12-30 | E1: 2009-12-30
A2: Total Revenue | C2: 60138000 | D2: 42588000 | E2: 32396000
A3: Cost of Revenue | C3: 44404000 | D3: 31281000 | E3: 24931000
A5: Gross Profit | C5: 15734000 | D5: 11307000 | E5: 7465000
B7: Operating Expenses
B8: Research Development | C8: 2297000 | D8: 1905000 | E8: 1421000
B9: Selling General and Administrative | C9: 6284000 | D9: 5439000 | E9: 5467000
B10: Non Recurring | C10: - | D10: - | E10: -
B11: Others | C11: - | D11: - | E11: -
B13: Total Operating Expenses | C13: - | D13: - | E13: -
A16: Operating Income or Loss | C16: 7153000 | D16: 3963000 | E16: 577000
B18: Income from Continuing Operations
B19: Total Other Income/Expenses Net | C19: -32000 | D19: 130000 | E19: 381000
B20: Earnings Before Interest And Taxes | C20: 7121000 | D20: 4093000 | E20: 958000
B21: Interest Expense | C21: 396000 | D21: 343000 | E21: 389000
B22: Income Before Tax | C22: 6725000 | D22: 3750000 | E22: 569000
B23: Income Tax Expense | C23: 1720000 | D23: 968000 | E23: -270000
B24: Minority Interest | C24: -53000 | D24: -58000 | E24: 68000
B26: Net Income From Continuing Ops | C26: 4928000 | D26: 2700000 | E26: 895000
B28: Non-recurring Events
B29: Discontinued Operations | C29: - | D29: - | E29: -
B30: Extraordinary Items | C30: - | D30: - | E30: -
B31: Effect Of Accounting Changes | C31: - | D31: - | E31: -
B32: Other Items | C32: - | D32: - | E32: -
A35: Net Income | C35: 4928000 | D35: 2700000 | E35: 895000
A36: Preferred Stock And Other Adjustments | C36: - | D36: - | E36: -
A38: Net Income Applicable To Common Shares | C38: 4928000 | D38: 2700000 | E38: 895000
A41: Period Ending | C41: 2011-12-30 | D41: 2010-12-30 | E41: 2009-12-30
A43: Assets
A44: Current Assets
B45: Cash And Cash Equivalents | C45: 3057000 | D45: 3592000 | E45: 4867000
B46: Short Term Investments | C46: - | D46: - | E46: -
B47: Net Receivables | C47: 19533000 | D47: 17723000 | E47: 15128000
B48: Inventory | C48: 14544000 | D48: 9587000 | E48: 6360000
B49: Other Current Assets | C49: 994000 | D49: 908000 | E49: 862000
A51: Total Current Assets | C51: 38128000 | D51: 31810000 | E51: 27217000
A52: Long Term Investments | C52: 13211000 | D52: 12221000 | E52: 13355000
A53: Property Plant and Equipment | C53: 14395000 | D53: 12539000 | E53: 12386000
A54: Goodwill | C54: 7080000 | D54: 2614000 | E54: 2269000
A55: Intangible Assets | C55: 4368000 | D55: 805000 | E55: 465000
A56: Accumulated Amortization | C56: - | D56: - | E56: -
A57: Other Assets | C57: 2107000 | D57: 1538000 | E57: 1632000
A58: Deferred Long Term Asset Charges | C58: 2157000 | D58: 2493000 | E58: 2714000
A60: Total Assets | C60: 81446000 | D60: 64020000 | E60: 60038000
A62: Liabilities
A63: Current Liabilities
B64: Accounts Payable | C64: 16946000 | D64: 12518000 | E64: 7910000
B65: Short/Current Long Term Debt | C65: 9648000 | D65: 7981000 | E65: 9784000
B66: Other Current Liabilities | C66: 1967000 | D66: 1521000 | E66: 1281000
A68: Total Current Liabilities | C68: 28561000 | D68: 22020000 | E68: 18975000
A69: Long Term Debt | C69: 24944000 | D69: 20437000 | E69: 21847000
A70: Other Liabilities | C70: 14539000 | D70: 10238000 | E70: 9916000
A71: Deferred Long Term Liability Charges | C71: - | D71: - | E71: -
A72: Minority Interest | C72: 46000 | D72: 40000 | E72: 83000
A73: Negative Goodwill | C73: - | D73: - | E73: -
A75: Total Liabilities | C75: 68090000 | D75: 52735000 | E75: 50821000
A77: Stockholders' Equity
A78: Misc Stocks Options Warrants | C78: 473000 | D78: 461000 | E78: 477000
A79: Redeemable Preferred Stock | C79: - | D79: - | E79: -
A80: Preferred Stock | C80: - | D80: - | E80: -
A81: Common Stock | C81: 4273000 | D81: 3888000 | E81: 3439000
A82: Retained Earnings | C82: 25219000 | D82: 21384000 | E82: 19711000
A83: Treasury Stock | C83: -10281000 | D83: -10397000 | E83: -10646000
A84: Capital Surplus | C84: - | D84: - | E84: -
A85: Other Stockholder Equity | C85: -6328000 | D85: -4051000 | E85: -3764000
A87: Total Stockholder Equity | C87: 12883000 | D87: 10824000 | E87: 8740000
A89: Net Tangible Assets | C89: 1435000 | D89: 7405000 | E89: 6006000
A92: Period Ending | C92: 2011-12-30 | D92: 2010-12-30 | E92: 2009-12-30
A93: Net Income | C93: 4928000 | D93: 2700000 | E93: 895000
A95: Operating Activities, Cash Flows Provided By or Used In
A96: Depreciation | C96: 2527000 | D96: 2296000 | E96: 2336000
A97: Adjustments To Net Income | C97: 457000 | D97: 469000 | E97: 137000
A98: Changes In Accounts Receivables | C98: -1345000 | D98: -2320000 | E98: 4014000
A99: Changes In Liabilities | C99: 3408000 | D99: 4115000 | E99: -3551000
A100: Changes In Inventories | C100: -2927000 | D100: -2667000 | E100: 2501000
A101: Changes In Other Operating Activities | C101: -91000 | D101: 358000 | E101: 235000
A103: Total Cash Flow From Operating Activities | C103: 7010000 | D103: 5009000 | E103: 6499000
A105: Investing Activities, Cash Flows Provided By or Used In
A106: Capital Expenditures | C106: -3924000 | D106: -2586000 | E106: -2472000
A107: Investments | C107: -1009000 | D107: 516000 | E107: 2223000
A108: Other Cash flows from Investing Activities | C108: -6494000 | D108: 475000 | E108: 1095000
A110: Total Cash Flows From Investing Activities | C110: -11427000 | D110: -1595000 | E110: 846000
A112: Financing Activities, Cash Flows Provided By or Used In
A113: Dividends Paid | C113: -1162000 | D113: -1084000 | E113: -1039000
A114: Sale Purchase of Stock | C114: 115000 | D114: 164000 | E114: 83000
A115: Net Borrowings | C115: 4824000 | D115: -3846000 | E115: -4280000
A116: Other Cash Flows from Financing Activities | C116: - | D116: - | E116: -
A118: Total Cash Flows From Financing Activities | C118: 3966000 | D118: -4613000 | E118: -5215000
A119: Effect Of Exchange Rate Changes | C119: -84000 | D119: -76000 | E119: 1000
A121: Change In Cash and Cash Equivalents | C121: -535000 | D121: -1275000 | E121: 2131000

Sheet mtor
A1: Period Ending | C1: 2012-09-30 | D1: 2011-09-30 | E1: 2010-09-30
A2: Total Revenue | C2: 4418000 | D2: 4622000 | E2: 3530000
A3: Cost of Revenue | C3: 3933000 | D3: 4146000 | E3: 3105000
A5: Gross Profit | C5: 485000 | D5: 476000 | E5: 425000
B7: Operating Expenses
B8: Research Development | C8: - | D8: - | E8: -
B9: Selling General and Administrative | C9: 289000 | D9: 280000 | E9: 287000
B10: Non Recurring | C10: 39000 | D10: 22000 | E10: 6000
B11: Others | C11: - | D11: - | E11: -
B13: Total Operating Expenses | C13: - | D13: - | E13: -
A16: Operating Income or Loss | C16: 173000 | D16: 174000 | E16: 132000
B18: Income from Continuing Operations
B19: Total Other Income/Expenses Net | C19: 23000 | D19: 10000 | E19: 2000
B20: Earnings Before Interest And Taxes | C20: 232000 | D20: 254000 | E20: 182000
B21: Interest Expense | C21: 95000 | D21: 95000 | E21: 106000
B22: Income Before Tax | C22: 137000 | D22: 159000 | E22: 76000
B23: Income Tax Expense | C23: 56000 | D23: 77000 | E23: 48000
B24: Minority Interest | C24: -11000 | D24: -17000 | E24: -14000
B26: Net Income From Continuing Ops | C26: 81000 | D26: 82000 | E26: 28000
B28: Non-recurring Events
B29: Discontinued Operations | C29: -18000 | D29: -2000 | E29: -2000
B30: Extraordinary Items | C30: - | D30: - | E30: -
B31: Effect Of Accounting Changes | C31: - | D31: - | E31: -
B32: Other Items | C32: - | D32: - | E32: -
A35: Net Income | C35: 52000 | D35: 63000 | E35: 12000
A36: Preferred Stock And Other Adjustments | C36: - | D36: - | E36: -
A38: Net Income Applicable To Common Shares | C38: 52000 | D38: 63000 | E38: 12000
A41: Period Ending | C41: 2012-09-30 | D41: 2011-09-30 | E41: 2010-09-30
A43: Assets
A44: Current Assets
B45: Cash And Cash Equivalents | C45: 257000 | D45: 217000 | E45: 343000
B46: Short Term Investments | C46: - | D46: - | E46: -
B47: Net Receivables | C47: 542000 | D47: 712000 | E47: 579000
B48: Inventory | C48: 438000 | D48: 460000 | E48: 382000
B49: Other Current Assets | C49: 61000 | D49: 70000 | E49: 417000
A51: Total Current Assets | C51: 1298000 | D51: 1459000 | E51: 1721000
A52: Long Term Investments | C52: - | D52: - | E52: -
A53: Property Plant and Equipment | C53: 417000 | D53: 421000 | E53: 389000
A54: Goodwill | C54: 433000 | D54: 431000 | E54: 432000
A55: Intangible Assets | C55: - | D55: - | E55: -
A56: Accumulated Amortization | C56: - | D56: - | E56: -
A57: Other Assets | C57: 353000 | D57: 352000 | E57: 337000
A58: Deferred Long Term Asset Charges | C58: - | D58: - | E58: -
A60: Total Assets | C60: 2501000 | D60: 2663000 | E60: 2879000
A62: Liabilities
A63: Current Liabilities
B64: Accounts Payable | C64: 697000 | D64: 841000 | E64: 670000
B65: Short/Current Long Term Debt | C65: 18000 | D65: 84000 | E65: -
B66: Other Current Liabilities | C66: 313000 | D66: 328000 | E66: 720000
A68: Total Current Liabilities | C68: 1028000 | D68: 1253000 | E68: 1390000
A69: Long Term Debt | C69: 1042000 | D69: 950000 | E69: 1029000
A70: Other Liabilities | C70: 1413000 | D70: 1421000 | E70: 1483000
A71: Deferred Long Term Liability Charges | C71: - | D71: - | E71: -
A72: Minority Interest | C72: 41000 | D72: 34000 | E72: 31000
A73: Negative Goodwill | C73: - | D73: - | E73: -
A75: Total Liabilities | C75: 3524000 | D75: 3658000 | E75: 3933000
A77: Stockholders' Equity
A78: Misc Stocks Options Warrants | C78: - | D78: - | E78: -
A79: Redeemable Preferred Stock | C79: - | D79: - | E79: -
A80: Preferred Stock | C80: - | D80: - | E80: -
A81: Common Stock | C81: 96000 | D81: 94000 | E81: 92000
A82: Retained Earnings | C82: -1105000 | D82: -1157000 | E82: -1220000
A83: Treasury Stock | C83: - | D83: - | E83: -
A84: Capital Surplus | C84: 901000 | D84: 897000 | E84: 886000
A85: Other Stockholder Equity | C85: -915000 | D85: -829000 | E85: -812000
A87: Total Stockholder Equity | C87: -1023000 | D87: -995000 | E87: -1054000
A89: Net Tangible Assets | C89: -1456000 | D89: -1426000 | E89: -1486000
A92: Period Ending | C92: 2012-09-29 | D92: 2011-09-29 | E92: 2010-09-29
A93: Net Income | C93: 52000 | D93: 63000 | E93: 12000
A95: Operating Activities, Cash Flows Provided By or Used In
A96: Depreciation | C96: - | D96: - | E96: -
A97: Adjustments To Net Income | C97: - | D97: - | E97: -
A98: Changes In Accounts Receivables | C98: - | D98: - | E98: -
A99: Changes In Liabilities | C99: - | D99: - | E99: -
A100: Changes In Inventories | C100: - | D100: - | E100: -
A101: Changes In Other Operating Activities | C101: - | D101: - | E101: -
A103: Total Cash Flow From Operating Activities | C103: 77000 | D103: 41000 | E103: 211000
A105: Investing Activities, Cash Flows Provided By or Used In
A106: Capital Expenditures | C106: -89000 | D106: -105000 | E106: -55000
A107: Investments | C107: - | D107: - | E107: -
A108: Other Cash flows from Investing Activities | C108: 49000 | D108: -67000 | E108: -9000
A110: Total Cash Flows From Investing Activities | C110: -40000 | D110: -172000 | E110: -64000
A112: Financing Activities, Cash Flows Provided By or Used In
A113: Dividends Paid | C113: - | D113: - | E113: -
A114: Sale Purchase of Stock | C114: - | D114: - | E114: 209000
A115: Net Borrowings | C115: 14000 | D115: - | E115: -54000
A116: Other Cash Flows from Financing Activities | C116: - | D116: 6000 | E116: -13000
A118: Total Cash Flows From Financing Activities | C118: 2000 | D118: 6000 | E118: 97000
A119: Effect Of Exchange Rate Changes | C119: 1000 | D119: -1000 | E119: 4000
A121: Change In Cash and Cash Equivalents | C121: 40000 | D121: -126000 | E121: 248000

Sheet aapl
A1: Period Ending | C1: 2012-09-29 | D1: 2011-09-24 | E1: 2010-09-25
A2: Total Revenue | C2: 156508000 | D2: 108249000 | E2: 65225000
A3: Cost of Revenue | C3: 87846000 | D3: 64431000 | E3: 39541000
A5: Gross Profit | C5: 68662000 | D5: 43818000 | E5: 25684000
B7: Operating Expenses
B8: Research Development | C8: 3381000 | D8: 2429000 | E8: 1782000
B9: Selling General and Administrative | C9: 10040000 | D9: 7599000 | E9: 5517000
B10: Non Recurring | C10: - | D10: - | E10: -
B11: Others | C11: - | D11: - | E11: -
B13: Total Operating Expenses | C13: - | D13: - | E13: -
A16: Operating Income or Loss | C16: 55241000 | D16: 33790000 | E16: 18385000
B18: Income from Continuing Operations
B19: Total Other Income/Expenses Net | C19: 522000 | D19: 415000 | E19: 155000
B20: Earnings Before Interest And Taxes | C20: 55763000 | D20: 34205000 | E20: 18540000
B21: Interest Expense | C21: - | D21: - | E21: -
B22: Income Before Tax | C22: 55763000 | D22: 34205000 | E22: 18540000
B23: Income Tax Expense | C23: 14030000 | D23: 8283000 | E23: 4527000
B24: Minority Interest | C24: - | D24: - | E24: -
B26: Net Income From Continuing Ops | C26: 41733000 | D26: 25922000 | E26: 14013000
B28: Non-recurring Events
B29: Discontinued Operations | C29: - | D29: - | E29: -
B30: Extraordinary Items | C30: - | D30: - | E30: -
B31: Effect Of Accounting Changes | C31: - | D31: - | E31: -
B32: Other Items | C32: - | D32: - | E32: -
A35: Net Income | C35: 41733000 | D35: 25922000 | E35: 14013000
A36: Preferred Stock And Other Adjustments | C36: - | D36: - | E36: -
A38: Net Income Applicable To Common Shares | C38: 41733000 | D38: 25922000 | E38: 14013000
A41: Period Ending | C41: 2012-09-29 | D41: 2011-09-24 | E41: 2010-09-25
A43: Assets
A44: Current Assets
B45: Cash And Cash Equivalents | C45: 10746000 | D45: 9815000 | E45: 11261000
B46: Short Term Investments | C46: 18383000 | D46: 16137000 | E46: 14359000
B47: Net Receivables | C47: 21275000 | D47: 13731000 | E47: 11560000
B48: Inventory | C48: 791000 | D48: 776000 | E48: 1051000
B49: Other Current Assets | C49: 6458000 | D49: 4529000 | E49: 3447000
A51: Total Current Assets | C51: 57653000 | D51: 44988000 | E51: 41678000
A52: Long Term Investments | C52: 92122000 | D52: 55618000 | E52: 25391000
A53: Property Plant and Equipment | C53: 15452000 | D53: 7777000 | E53: 4768000
A54: Goodwill | C54: 1135000 | D54: 896000 | E54: 741000
A55: Intangible Assets | C55: 4224000 | D55: 3536000 | E55: 342000
A56: Accumulated Amortization | C56: - | D56: - | E56: -
A57: Other Assets | C57: 5478000 | D57: 3556000 | E57: 2263000
A58: Deferred Long Term Asset Charges | C58: - | D58: - | E58: -
A60: Total Assets | C60: 176064000 | D60: 116371000 | E60: 75183000
A62: Liabilities
A63: Current Liabilities
B64: Accounts Payable | C64: 32589000 | D64: 23879000 | E64: 17738000
B65: Short/Current Long Term Debt | C65: - | D65: - | E65: -
B66: Other Current Liabilities | C66: 5953000 | D66: 4091000 | E66: 2984000
A68: Total Current Liabilities | C68: 38542000 | D68: 27970000 | E68: 20722000
A69: Long Term Debt | C69: - | D69: - | E69: -
A70: Other Liabilities | C70: 16664000 | D70: 10100000 | E70: 5531000
A71: Deferred Long Term Liability Charges | C71: 2648000 | D71: 1686000 | E71: 1139000
A72: Minority Interest | C72: - | D72: - | E72: -
A73: Negative Goodwill | C73: - | D73: - | E73: -
A75: Total Liabilities | C75: 57854000 | D75: 39756000 | E75: 27392000
A77: Stockholders' Equity
A78: Misc Stocks Options Warrants | C78: - | D78: - | E78: -
A79: Redeemable Preferred Stock | C79: - | D79: - | E79: -
A80: Preferred Stock | C80: - | D80: - | E80: -
A81: Common Stock | C81: 16422000 | D81: 13331000 | E81: 10668000
A82: Retained Earnings | C82: 101289000 | D82: 62841000 | E82: 37169000
A83: Treasury Stock | C83: - | D83: - | E83: -
A84: Capital Surplus | C84: - | D84: - | E84: -
A85: Other Stockholder Equity | C85: 499000 | D85: 443000 | E85: -46000
A87: Total Stockholder Equity | C87: 118210000 | D87: 76615000 | E87: 47791000
A89: Net Tangible Assets | C89: 112851000 | D89: 72183000 | E89: 46708000
A92: Period Ending | C92: 2012-09-29 | D92: 2011-09-24 | E92: 2010-09-25
A93: Net Income | C93: 41733000 | D93: 25922000 | E93: 14013000
A95: Operating Activities, Cash Flows Provided By or Used In
A96: Depreciation | C96: 3277000 | D96: 1814000 | E96: 1027000
A97: Adjustments To Net Income | C97: 6145000 | D97: 4036000 | E97: 2319000
A98: Changes In Accounts Receivables | C98: -6965000 | D98: -1791000 | E98: -4860000
A99: Changes In Liabilities | C99: 9843000 | D99: 8664000 | E99: 8302000
A100: Changes In Inventories | C100: -15000 | D100: 275000 | E100: -596000
A101: Changes In Other Operating Activities | C101: -3162000 | D101: -1391000 | E101: -1610000
A103: Total Cash Flow From Operating Activities | C103: 50856000 | D103: 37529000 | E103: 18595000
A105: Investing Activities, Cash Flows Provided By or Used In
A106: Capital Expenditures | C106: -8295000 | D106: -4260000 | E106: -2005000
A107: Investments | C107: -38427000 | D107: -32464000 | E107: -11075000
A108: Other Cash flows from Investing Activities | C108: -1505000 | D108: -3695000 | E108: -774000
A110: Total Cash Flows From Investing Activities | C110: -48227000 | D110: -40419000 | E110: -13854000
A112: Financing Activities, Cash Flows Provided By or Used In
A113: Dividends Paid | C113: -2488000 | D113: - | E113: -
A114: Sale Purchase of Stock | C114: 665000 | D114: 831000 | E114: 912000
A115: Net Borrowings | C115: - | D115: - | E115: -
A116: Other Cash Flows from Financing Activities | C116: -1226000 | D116: -520000 | E116: -406000
A118: Total Cash Flows From Financing Activities | C118: -1698000 | D118: 1444000 | E118: 1257000
A119: Effect Of Exchange Rate Changes | C119: - | D119: - | E119: -
A121: Change In Cash and Cash Equivalents | C121: 931000 | D121: -1446000 | E121: 5998000

Sheet msft
A1: Period Ending | C1: 2012-06-30 | D1: 2011-06-30 | E1: 2010-06-30
A2: Total Revenue | C2: 73723000 | D2: 69943000 | E2: 62484000
A3: Cost of Revenue | C3: 17530000 | D3: 15577000 | E3: 12395000
A5: Gross Profit | C5: 56193000 | D5: 54366000 | E5: 50089000
B7: Operating Expenses
B8: Research Development | C8: 9811000 | D8: 9043000 | E8: 8714000
B9: Selling General and Administrative | C9: 18426000 | D9: 18162000 | E9: 17277000
B10: Non Recurring | C10: 6193000 | D10: - | E10: -
B11: Others | C11: - | D11: - | E11: -
B13: Total Operating Expenses | C13: - | D13: - | E13: -
A16: Operating Income or Loss | C16: 21763000 | D16: 27161000 | E16: 24098000
B18: Income from Continuing Operations
B19: Total Other Income/Expenses Net | C19: 504000 | D19: 910000 | E19: 915000
B20: Earnings Before Interest And Taxes | C20: 22267000 | D20: 28071000 | E20: 25013000
B21: Interest Expense | C21: - | D21: - | E21: -
B22: Income Before Tax | C22: 22267000 | D22: 28071000 | E22: 25013000
B23: Income Tax Expense | C23: 5289000 | D23: 4921000 | E23: 6253000
B24: Minority Interest | C24: - | D24: - | E24: -
B26: Net Income From Continuing Ops | C26: 16978000 | D26: 23150000 | E26: 18760000
B28: Non-recurring Events
B29: Discontinued Operations | C29: - | D29: - | E29: -
B30: Extraordinary Items | C30: - | D30: - | E30: -
B31: Effect Of Accounting Changes | C31: - | D31: - | E31: -
B32: Other Items | C32: - | D32: - | E32: -
A35: Net Income | C35: 16978000 | D35: 23150000 | E35: 18760000
A36: Preferred Stock And Other Adjustments | C36: - | D36: - | E36: -
A38: Net Income Applicable To Common Shares | C38: 16978000 | D38: 23150000 | E38: 18760000
A41: Period Ending | C41: 2012-06-30 | D41: 2011-06-30 | E41: 2010-06-30
A43: Assets
A44: Current Assets
B45: Cash And Cash Equivalents | C45: 6938000 | D45: 9610000 | E45: 5505000
B46: Short Term Investments | C46: 56102000 | D46: 43162000 | E46: 31283000
B47: Net Receivables | C47: 17815000 | D47: 17454000 | E47: 15198000
B48: Inventory | C48: 1137000 | D48: 1372000 | E48: 740000
B49: Other Current Assets | C49: 3092000 | D49: 3320000 | E49: 2950000
A51: Total Current Assets | C51: 85084000 | D51: 74918000 | E51: 55676000
A52: Long Term Investments | C52: 9776000 | D52: 10865000 | E52: 7754000
A53: Property Plant and Equipment | C53: 8269000 | D53: 8162000 | E53: 7630000
A54: Goodwill | C54: 13452000 | D54: 12581000 | E54: 12394000
A55: Intangible Assets | C55: 3170000 | D55: 744000 | E55: 1158000
A56: Accumulated Amortization | C56: - | D56: - | E56: -
A57: Other Assets | C57: 1520000 | D57: 1434000 | E57: 1501000
A58: Deferred Long Term Asset Charges | C58: - | D58: - | E58: -
A60: Total Assets | C60: 121271000 | D60: 108704000 | E60: 86113000
A62: Liabilities
A63: Current Liabilities
B64: Accounts Payable | C64: 9653000 | D64: 9560000 | E64: 8564000
B65: Short/Current Long Term Debt | C65: 1231000 | D65: - | E65: 1000000
B66: Other Current Liabilities | C66: 21804000 | D66: 19214000 | E66: 16583000
A68: Total Current Liabilities | C68: 32688000 | D68: 28774000 | E68: 26147000
A69: Long Term Debt | C69: 10713000 | D69: 11921000 | E69: 4939000
A70: Other Liabilities | C70: 8208000 | D70: 8072000 | E70: 7445000
A71: Deferred Long Term Liability Charges | C71: 3299000 | D71: 2854000 | E71: 1407000
A72: Minority Interest | C72: - | D72: - | E72: -
A73: Negative Goodwill | C73: - | D73: - | E73: -
A75: Total Liabilities | C75: 54908000 | D75: 51621000 | E75: 39938000
A77: Stockholders' Equity
A78: Misc Stocks Options Warrants | C78: - | D78: - | E78: -
A79: Redeemable Preferred Stock | C79: - | D79: - | E79: -
A80: Preferred Stock | C80: - | D80: - | E80: -
A81: Common Stock | C81: 65797000 | D81: 63415000 | E81: 62856000
A82: Retained Earnings | C82: 566000 | D82: -6332000 | E82: -16681000
A83: Treasury Stock | C83: - | D83: - | E83: -
A84: Capital Surplus | C84: - | D84: - | E84: -
A85: Other Stockholder Equity | C85: - | D85: - | E85: -
A87: Total Stockholder Equity | C87: 66363000 | D87: 57083000 | E87: 46175000
A89: Net Tangible Assets | C89: 49741000 | D89: 43758000 | E89: 32623000
A92: Period Ending | C92: 2012-06-30 | D92: 2011-06-30 | E92: 2010-06-30
A93: Net Income | C93: 16978000 | D93: 23150000 | E93: 18760000
A95: Operating Activities, Cash Flows Provided By or Used In
A96: Depreciation | C96: 2967000 | D96: 2766000 | E96: 2673000
A97: Adjustments To Net Income | C97: 11855000 | D97: 4081000 | E97: 1979000
A98: Changes In Accounts Receivables | C98: -1156000 | D98: -1451000 | E98: -2238000
A99: Changes In Liabilities | C99: 553000 | D99: 206000 | E99: 2702000
A100: Changes In Inventories | C100: 184000 | D100: -561000 | E100: -44000
A101: Changes In Other Operating Activities | C101: 245000 | D101: -1197000 | E101: 241000
A103: Total Cash Flow From Operating Activities | C103: 31626000 | D103: 26994000 | E103: 24073000
A105: Investing Activities, Cash Flows Provided By or Used In
A106: Capital Expenditures | C106: -2305000 | D106: -2355000 | E106: -1977000
A107: Investments | C107: -11975000 | D107: -13216000 | E107: -7590000
A108: Other Cash flows from Investing Activities | C108: -10506000 | D108: 955000 | E108: -1747000
A110: Total Cash Flows From Investing Activities | C110: -24786000 | D110: -14616000 | E110: -11314000
A112: Financing Activities, Cash Flows Provided By or Used In
A113: Dividends Paid | C113: -6385000 | D113: -5180000 | E113: -4578000
A114: Sale Purchase of Stock | C114: -3116000 | D114: -9133000 | E114: -8958000
A115: Net Borrowings | C115: - | D115: 5960000 | E115: 190000
A116: Other Cash Flows from Financing Activities | C116: - | D116: -40000 | E116: 10000
A118: Total Cash Flows From Financing Activities | C118: -9408000 | D118: -8376000 | E118: -13291000
A119: Effect Of Exchange Rate Changes | C119: -104000 | D119: 103000 | E119: -39000
A121: Change In Cash and Cash Equivalents | C121: -2672000 | D121: 4105000 | E121: -571000

Sheet goog
A1: Period Ending | C1: 2011-12-30 | D1: 2010-12-30 | E1: 2009-12-30
A2: Total Revenue | C2: 37905000 | D2: 29321000 | E2: 23651000
A3: Cost of Revenue | C3: 13188000 | D3: 10417000 | E3: 8844000
A5: Gross Profit | C5: 24717000 | D5: 18904000 | E5: 14807000
B7: Operating Expenses
B8: Research Development | C8: 5162000 | D8: 3762000 | E8: 2843000
B9: Selling General and Administrative | C9: 7813000 | D9: 4761000 | E9: 3652000
B10: Non Recurring | C10: - | D10: - | E10: -
B11: Others | C11: - | D11: - | E11: -
B13: Total Operating Expenses | C13: - | D13: - | E13: -
A16: Operating Income or Loss | C16: 11742000 | D16: 10381000 | E16: 8312000
B18: Income from Continuing Operations
B19: Total Other Income/Expenses Net | C19: 584000 | D19: 415000 | E19: 69000
B20: Earnings Before Interest And Taxes | C20: 12326000 | D20: 10796000 | E20: 8381000
B21: Interest Expense | C21: - | D21: - | E21: -
B22: Income Before Tax | C22: 12326000 | D22: 10796000 | E22: 8381000
B23: Income Tax Expense | C23: 2589000 | D23: 2291000 | E23: 1861000
B24: Minority Interest | C24: - | D24: - | E24: -
B26: Net Income From Continuing Ops | C26: 9737000 | D26: 8505000 | E26: 6520000
B28: Non-recurring Events
B29: Discontinued Operations | C29: - | D29: - | E29: -
B30: Extraordinary Items | C30: - | D30: - | E30: -
B31: Effect Of Accounting Changes | C31: - | D31: - | E31: -
B32: Other Items | C32: - | D32: - | E32: -
A35: Net Income | C35: 9737000 | D35: 8505000 | E35: 6520000
A36: Preferred Stock And Other Adjustments | C36: - | D36: - | E36: -
A38: Net Income Applicable To Common Shares | C38: 9737000 | D38: 8505000 | E38: 6520000
A41: Period Ending | C41: 2011-12-30 | D41: 2010-12-30 | E41: 2009-12-30
A43: Assets
A44: Current Assets
B45: Cash And Cash Equivalents | C45: 9983000 | D45: 13630000 | E45: 10198000
B46: Short Term Investments | C46: 34643000 | D46: 21345000 | E46: 14287000
B47: Net Receivables | C47: 6387000 | D47: 5261000 | E47: 3845000
B48: Inventory | C48: - | D48: - | E48: -
B49: Other Current Assets | C49: 1745000 | D49: 1326000 | E49: 837000
A51: Total Current Assets | C51: 52758000 | D51: 41562000 | E51: 29167000
A52: Long Term Investments | C52: 790000 | D52: 523000 | E52: 129000
A53: Property Plant and Equipment | C53: 9603000 | D53: 7759000 | E53: 4845000
A54: Goodwill | C54: 7346000 | D54: 6256000 | E54: 4903000
A55: Intangible Assets | C55: 1578000 | D55: 1044000 | E55: 775000
A56: Accumulated Amortization | C56: - | D56: - | E56: -
A57: Other Assets | C57: 499000 | D57: 442000 | E57: 415000
A58: Deferred Long Term Asset Charges | C58: - | D58: 265000 | E58: 263000
A60: Total Assets | C60: 72574000 | D60: 57851000 | E60: 40497000
A62: Liabilities
A63: Current Liabilities
B64: Accounts Payable | C64: 7148000 | D64: 6137000 | E64: 2462000
B65: Short/Current Long Term Debt | C65: 1218000 | D65: 3465000 | E65: -
B66: Other Current Liabilities | C66: 547000 | D66: 394000 | E66: 285000
A68: Total Current Liabilities | C68: 8913000 | D68: 9996000 | E68: 2747000
A69: Long Term Debt | C69: 2986000 | D69: - | E69: -
A70: Other Liabilities | C70: 2199000 | D70: 1579000 | E70: 1704000
A71: Deferred Long Term Liability Charges | C71: 331000 | D71: 35000 | E71: 42000
A72: Minority Interest | C72: - | D72: - | E72: -
A73: Negative Goodwill | C73: - | D73: - | E73: -
A75: Total Liabilities | C75: 14429000 | D75: 11610000 | E75: 4493000
A77: Stockholders' Equity
A78: Misc Stocks Options Warrants | C78: - | D78: - | E78: -
A79: Redeemable Preferred Stock | C79: - | D79: - | E79: -
A80: Preferred Stock | C80: - | D80: - | E80: -
A81: Common Stock | C81: 20264000 | D81: 18235000 | E81: 15817000
A82: Retained Earnings | C82: 37605000 | D82: 27868000 | E82: 20082000
A83: Treasury Stock | C83: - | D83: - | E83: -
A84: Capital Surplus | C84: - | D84: - | E84: -
A85: Other Stockholder Equity | C85: 276000 | D85: 138000 | E85: 105000
A87: Total Stockholder Equity | C87: 58145000 | D87: 46241000 | E87: 36004000
A89: Net Tangible Assets | C89: 49221000 | D89: 38941000 | E89: 30326000
A92: Period Ending | C92: 2011-12-30 | D92: 2010-12-30 | E92: 2009-12-30
A93: Net Income | C93: 9737000 | D93: 8505000 | E93: 6520000
A95: Operating Activities, Cash Flows Provided By or Used In
A96: Depreciation | C96: 1851000 | D96: 1396000 | E96: 1524000
A97: Adjustments To Net Income | C97: 2347000 | D97: 1279000 | E97: 786000
A98: Changes In Accounts Receivables | C98: -1156000 | D98: -1129000 | E98: -504000
A99: Changes In Liabilities | C99: 2048000 | D99: 1444000 | E99: 728000
A100: Changes In Inventories | C100: - | D100: - | E100: -
A101: Changes In Other Operating Activities | C101: -262000 | D101: -414000 | E101: 262000
A103: Total Cash Flow From Operating Activities | C103: 14565000 | D103: 11081000 | E103: 9316000
A105: Investing Activities, Cash Flows Provided By or Used In
A106: Capital Expenditures | C106: -3438000 | D106: -4018000 | E106: -810000
A107: Investments | C107: -13349000 | D107: -7956000 | E107: -7101000
A108: Other Cash flows from Investing Activities | C108: -2254000 | D108: 1294000 | E108: -108000
A110: Total Cash Flows From Investing Activities | C110: -19041000 | D110: -10680000 | E110: -8019000
A112: Financing Activities, Cash Flows Provided By or Used In
A113: Dividends Paid | C113: - | D113: - | E113: -
A114: Sale Purchase of Stock | C114: - | D114: -801000 | E114: -
A115: Net Borrowings | C115: 726000 | D115: 3463000 | E115: -
A116: Other Cash Flows from Financing Activities | C116: -5000 | D116: 294000 | E116: 143000
A118: Total Cash Flows From Financing Activities | C118: 807000 | D118: 3050000 | E118: 233000
A119: Effect Of Exchange Rate Changes | C119: 22000 | D119: -19000 | E119: 11000
A121: Change In Cash and Cash Equivalents | C121: -3647000 | D121: 3432000 | E121: 1541000

Sheet amzn
A1: Period Ending | C1: 2011-12-30 | D1: 2010-12-30 | E1: 2009-12-30
A2: Total Revenue | C2: 48077000 | D2: 34204000 | E2: 24509000
A3: Cost of Revenue | C3: 37288000 | D3: 26561000 | E3: 18978000
A5: Gross Profit | C5: 10789000 | D5: 7643000 | E5: 5531000
B7: Operating Expenses
B8: Research Development | C8: - | D8: - | E8: -
B9: Selling General and Administrative | C9: 9927000 | D9: 6237000 | E9: 4402000
B10: Non Recurring | C10: - | D10: - | E10: -
B11: Others | C11: - | D11: - | E11: -
B13: Total Operating Expenses | C13: - | D13: - | E13: -
A16: Operating Income or Loss | C16: 862000 | D16: 1406000 | E16: 1129000
B18: Income from Continuing Operations
B19: Total Other Income/Expenses Net | C19: 137000 | D19: 130000 | E19: 66000
B20: Earnings Before Interest And Taxes | C20: 999000 | D20: 1536000 | E20: 1195000
B21: Interest Expense | C21: 65000 | D21: 39000 | E21: 34000
B22: Income Before Tax | C22: 934000 | D22: 1497000 | E22: 1161000
B23: Income Tax Expense | C23: 291000 | D23: 352000 | E23: 253000
B24: Minority Interest | C24: - | D24: - | E24: -
B26: Net Income From Continuing Ops | C26: 631000 | D26: 1152000 | E26: 902000
B28: Non-recurring Events
B29: Discontinued Operations | C29: - | D29: - | E29: -
B30: Extraordinary Items | C30: - | D30: - | E30: -
B31: Effect Of Accounting Changes | C31: - | D31: - | E31: -
B32: Other Items | C32: - | D32: - | E32: -
A35: Net Income | C35: 631000 | D35: 1152000 | E35: 902000
A36: Preferred Stock And Other Adjustments | C36: - | D36: - | E36: -
A38: Net Income Applicable To Common Shares | C38: 631000 | D38: 1152000 | E38: 902000
A41: Period Ending | C41: 2011-12-30 | D41: 2010-12-30 | E41: 2009-12-30
A43: Assets
A44: Current Assets
B45: Cash And Cash Equivalents | C45: 5269000 | D45: 3777000 | E45: 3444000
B46: Short Term Investments | C46: 4307000 | D46: 4985000 | E46: 2922000
B47: Net Receivables | C47: 2922000 | D47: 1783000 | E47: 1260000
B48: Inventory | C48: 4992000 | D48: 3202000 | E48: 2171000
B49: Other Current Assets | C49: - | D49: - | E49: -
A51: Total Current Assets | C51: 17490000 | D51: 13747000 | E51: 9797000
A52: Long Term Investments | C52: - | D52: - | E52: -
A53: Property Plant and Equipment | C53: 4417000 | D53: 2414000 | E53: 1290000
A54: Goodwill | C54: 1955000 | D54: 1349000 | E54: 1234000
A55: Intangible Assets | C55: - | D55: - | E55: -
A56: Accumulated Amortization | C56: - | D56: - | E56: -
A57: Other Assets | C57: 1388000 | D57: 1265000 | E57: 1474000
A58: Deferred Long Term Asset Charges | C58: 28000 | D58: 22000 | E58: 18000
A60: Total Assets | C60: 25278000 | D60: 18797000 | E60: 13813000
A62: Liabilities
A63: Current Liabilities
B64: Accounts Payable | C64: 14896000 | D64: 10372000 | E64: 7364000
B65: Short/Current Long Term Debt | C65: - | D65: - | E65: -
B66: Other Current Liabilities | C66: - | D66: - | E66: -
A68: Total Current Liabilities | C68: 14896000 | D68: 10372000 | E68: 7364000
A69: Long Term Debt | C69: - | D69: - | E69: -
A70: Other Liabilities | C70: 2625000 | D70: 1561000 | E70: 1192000
A71: Deferred Long Term Liability Charges | C71: - | D71: - | E71: -
A72: Minority Interest | C72: - | D72: - | E72: -
A73: Negative Goodwill | C73: - | D73: - | E73: -
A75: Total Liabilities | C75: 17521000 | D75: 11933000 | E75: 8556000
A77: Stockholders' Equity
A78: Misc Stocks Options Warrants | C78: - | D78: - | E78: -
A79: Redeemable Preferred Stock | C79: - | D79: - | E79: -
A80: Preferred Stock | C80: - | D80: - | E80: -
A81: Common Stock | C81: 5000 | D81: 5000 | E81: 5000
A82: Retained Earnings | C82: 1955000 | D82: 1324000 | E82: 172000
A83: Treasury Stock | C83: -877000 | D83: -600000 | E83: -600000
A84: Capital Surplus | C84: 6990000 | D84: 6325000 | E84: 5736000
A85: Other Stockholder Equity | C85: -316000 | D85: -190000 | E85: -56000
A87: Total Stockholder Equity | C87: 7757000 | D87: 6864000 | E87: 5257000
A89: Net Tangible Assets | C89: 5802000 | D89: 5515000 | E89: 4023000
A92: Period Ending | C92: 2011-12-31 | D92: 2010-12-31 | E92: 2009-12-31
A93: Net Income | C93: 631000 | D93: 1152000 | E93: 902000
A95: Operating Activities, Cash Flows Provided By or Used In
A96: Depreciation | C96: 1083000 | D96: 568000 | E96: 378000
A97: Adjustments To Net Income | C97: 725000 | D97: 194000 | E97: 401000
A98: Changes In Accounts Receivables | C98: -866000 | D98: -295000 | E98: -481000
A99: Changes In Liabilities | C99: 4107000 | D99: 2895000 | E99: 2624000
A100: Changes In Inventories | C100: -1777000 | D100: -1019000 | E100: -531000
A101: Changes In Other Operating Activities | C101: - | D101: - | E101: -
A103: Total Cash Flow From Operating Activities | C103: 3903000 | D103: 3495000 | E103: 3293000
A105: Investing Activities, Cash Flows Provided By or Used In
A106: Capital Expenditures | C106: -1811000 | D106: -979000 | E106: -373000
A107: Investments | C107: 586000 | D107: -2029000 | E107: -1924000
A108: Other Cash flows from Investing Activities | C108: -705000 | D108: -352000 | E108: -40000
A110: Total Cash Flows From Investing Activities | C110: -1930000 | D110: -3360000 | E110: -2337000
A112: Financing Activities, Cash Flows Provided By or Used In
A113: Dividends Paid | C113: - | D113: - | E113: -
A114: Sale Purchase of Stock | C114: -277000 | D114: - | E114: -
A115: Net Borrowings | C115: -444000 | D115: -221000 | E115: -472000
A116: Other Cash Flows from Financing Activities | C116: - | D116: - | E116: -
A118: Total Cash Flows From Financing Activities | C118: -482000 | D118: 181000 | E118: -280000
A119: Effect Of Exchange Rate Changes | C119: 1000 | D119: 17000 | E119: -1000
A121: Change In Cash and Cash Equivalents | C121: 1492000 | D121: 333000 | E121: 675000

Sheet intc
A1: Period Ending | C1: 2011-12-30 | D1: 2010-12-30 | E1: 2010-12-24
A2: Total Revenue | C2: 53999000 | D2: 43623000 | E2: 43623000
A3: Cost of Revenue | C3: 20242000 | D3: 15132000 | E3: 15132000
A5: Gross Profit | C5: 33757000 | D5: 28491000 | E5: 28491000
B7: Operating Expenses
B8: Research Development | C8: 8350000 | D8: 6576000 | E8: 6576000
B9: Selling General and Administrative | C9: 7670000 | D9: 6309000 | E9: 6309000
B10: Non Recurring | C10: - | D10: - | E10: -
B11: Others | C11: 260000 | D11: 18000 | E11: 18000
B13: Total Operating Expenses | C13: - | D13: - | E13: -
A16: Operating Income or Loss | C16: 17477000 | D16: 15588000 | E16: 15588000
B18: Income from Continuing Operations
B19: Total Other Income/Expenses Net | C19: - | D19: - | E19: -
B20: Earnings Before Interest And Taxes | C20: 17781000 | D20: 16045000 | E20: 16045000
B21: Interest Expense | C21: - | D21: - | E21: -
B22: Income Before Tax | C22: 17781000 | D22: 16045000 | E22: 16045000
B23: Income Tax Expense | C23: 4839000 | D23: 4581000 | E23: 4581000
B24: Minority Interest | C24: - | D24: - | E24: -
B26: Net Income From Continuing Ops | C26: 13054000 | D26: 11812000 | E26: 11812000
B28: Non-recurring Events
B29: Discontinued Operations | C29: - | D29: - | E29: -
B30: Extraordinary Items | C30: - | D30: - | E30: -
B31: Effect Of Accounting Changes | C31: - | D31: - | E31: -
B32: Other Items | C32: - | D32: - | E32: -
A35: Net Income | C35: 12942000 | D35: 11464000 | E35: 11464000
A36: Preferred Stock And Other Adjustments | C36: - | D36: - | E36: -
A38: Net Income Applicable To Common Shares | C38: 12942000 | D38: 11464000 | E38: 11464000
A41: Period Ending | C41: 2011-12-30 | D41: 2010-12-30 | E41: 2010-12-24
A43: Assets
A44: Current Assets
B45: Cash And Cash Equivalents | C45: 5065000 | D45: 5498000 | E45: 5498000
B46: Short Term Investments | C46: 9772000 | D46: 16387000 | E46: 16387000
B47: Net Receivables | C47: 5350000 | D47: 4355000 | E47: 4355000
B48: Inventory | C48: 4096000 | D48: 3757000 | E48: 3757000
B49: Other Current Assets | C49: 1589000 | D49: 1614000 | E49: 1614000
A51: Total Current Assets | C51: 25872000 | D51: 31611000 | E51: 31611000
A52: Long Term Investments | C52: 1451000 | D52: 4034000 | E52: 4034000
A53: Property Plant and Equipment | C53: 23627000 | D53: 17899000 | E53: 17899000
A54: Goodwill | C54: 9254000 | D54: 4531000 | E54: 4531000
A55: Intangible Assets | C55: 6267000 | D55: 860000 | E55: -
A56: Accumulated Amortization | C56: - | D56: - | E56: -
A57: Other Assets | C57: 4648000 | D57: 4251000 | E57: 5111000
A58: Deferred Long Term Asset Charges | C58: - | D58: - | E58: -
A60: Total Assets | C60: 71119000 | D60: 63186000 | E60: 63186000
A62: Liabilities
A63: Current Liabilities
B64: Accounts Payable | C64: 9852000 | D64: 8542000 | E64: 8667000
B65: Short/Current Long Term Debt | C65: 247000 | D65: 38000 | E65: 38000
B66: Other Current Liabilities | C66: 1929000 | D66: 747000 | E66: 622000
A68: Total Current Liabilities | C68: 12028000 | D68: 9327000 | E68: 9327000
A69: Long Term Debt | C69: 7084000 | D69: 2077000 | E69: 2077000
A70: Other Liabilities | C70: 3479000 | D70: 1426000 | E70: 1426000
A71: Deferred Long Term Liability Charges | C71: 2617000 | D71: 926000 | E71: 926000
A72: Minority Interest | C72: - | D72: - | E72: -
A73: Negative Goodwill | C73: - | D73: - | E73: -
A75: Total Liabilities | C75: 25208000 | D75: 13756000 | E75: 13756000
A77: Stockholders' Equity
A78: Misc Stocks Options Warrants | C78: - | D78: - | E78: -
A79: Redeemable Preferred Stock | C79: - | D79: - | E79: -
A80: Preferred Stock | C80: - | D80: - | E80: -
A81: Common Stock | C81: 17036000 | D81: 16178000 | E81: 16178000
A82: Retained Earnings | C82: 29656000 | D82: 32919000 | E82: 32919000
A83: Treasury Stock | C83: - | D83: - | E83: -
A84: Capital Surplus | C84: - | D84: - | E84: -
A85: Other Stockholder Equity | C85: -781000 | D85: 333000 | E85: 333000
A87: Total Stockholder Equity | C87: 45911000 | D87: 49430000 | E87: 49430000
A89: Net Tangible Assets | C89: 30390000 | D89: 44039000 | E89: 44899000
A92: Period Ending | C92: 2011-12-30 | D92: 2010-12-30 | E92: 2010-12-24
A93: Net Income | C93: 12942000 | D93: 11464000 | E93: 11464000
A95: Operating Activities, Cash Flows Provided By or Used In
A96: Depreciation | C96: 6064000 | D96: 4638000 | E96: 4638000
A97: Adjustments To Net Income | C97: 1626000 | D97: 525000 | E97: 525000
A98: Changes In Accounts Receivables | C98: -678000 | D98: -584000 | E98: -584000
A99: Changes In Liabilities | C99: 1161000 | D99: 621000 | E99: 621000
A100: Changes In Inventories | C100: -243000 | D100: -806000 | E100: -806000
A101: Changes In Other Operating Activities | C101: 91000 | D101: 834000 | E101: 834000
A103: Total Cash Flow From Operating Activities | C103: 20963000 | D103: 16692000 | E103: 16692000
A105: Investing Activities, Cash Flows Provided By or Used In
A106: Capital Expenditures | C106: -10764000 | D106: -5207000 | E106: -5207000
A107: Investments | C107: 8830000 | D107: -5332000 | E107: -5234000
A108: Other Cash flows from Investing Activities | C108: -8367000 | D108: - | E108: -98000
A110: Total Cash Flows From Investing Activities | C110: -10301000 | D110: -10539000 | E110: -10539000
A112: Financing Activities, Cash Flows Provided By or Used In
A113: Dividends Paid | C113: -4127000 | D113: -3503000 | E113: -3503000
A114: Sale Purchase of Stock | C114: -12295000 | D114: -1149000 | E114: -1149000
A115: Net Borrowings | C115: 5171000 | D115: -134000 | E115: -134000
A116: Other Cash Flows from Financing Activities | C116: 114000 | D116: 79000 | E116: 79000
A118: Total Cash Flows From Financing Activities | C118: -11100000 | D118: -4642000 | E118: -4642000
A119: Effect Of Exchange Rate Changes | C119: 5000 | D119: - | E119: -
A121: Change In Cash and Cash Equivalents | C121: -433000 | D121: 1511000 | E121: 1511000
